[Event "Late-Titled-Tuesday-Blitz-May-14-2024"]
[Site "Chess.com"]
[Date "2024.05.14"]
[Round "4"]
[White "Walter_White_Poland"]
[Black "TheKnightOfBosnia"]
[Result "1-0"]
[WhiteElo "2411"]
[BlackElo "2609"]
[TimeControl "180+1"]
[EndTime "14:39:05 PDT"]
[Termination "Walter_White_Poland won on time"]

1. e4 {[%clk 0:03:00.9]} 1... c5 {[%clk 0:03:00]} 2. Nf3 {[%clk 0:03:00.7]} 2...
d6 {[%clk 0:03:00.1]} 3. d4 {[%clk 0:03:00.7]} 3... cxd4 {[%clk 0:03:01]} 4.
Nxd4 {[%clk 0:03:01.1]} 4... Nf6 {[%clk 0:03:01.6]} 5. Nc3 {[%clk 0:03:01.2]}
5... a6 {[%clk 0:03:02]} 6. Bg5 {[%clk 0:03:01.2]} 6... e6 {[%clk 0:03:02.5]} 7.
f4 {[%clk 0:03:01.3]} 7... Be7 {[%clk 0:03:01.7]} 8. Qf3 {[%clk 0:03:01.1]} 8...
Qc7 {[%clk 0:03:02.1]} 9. O-O-O {[%clk 0:03:00.8]} 9... Nbd7 {[%clk 0:03:01.8]}
10. Bd3 {[%clk 0:03:00.5]} 10... b5 {[%clk 0:03:01]} 11. Rhe1 {[%clk 0:03:00.3]}
11... b4 {[%clk 0:02:56.5]} 12. Nd5 {[%clk 0:02:26.2]} 12... exd5 {[%clk
0:02:48.3]} 13. Nf5 {[%clk 0:02:25.4]} 13... Kf8 {[%clk 0:01:47.9]} 14. Nxe7
{[%clk 0:02:11.5]} 14... Kxe7 {[%clk 0:01:47.7]} 15. e5 {[%clk 0:02:11.5]} 15...
Kd8 {[%clk 0:01:21.1]} 16. exf6 {[%clk 0:02:06.3]} 16... gxf6 {[%clk 0:01:22]}
17. Qxd5 {[%clk 0:01:32.3]} 17... Bb7 {[%clk 0:01:21.1]} 18. Qxf7 {[%clk
0:01:32]} 18... fxg5 {[%clk 0:01:18.5]} 19. Re7 {[%clk 0:01:30.1]} 19... Bc6
{[%clk 0:01:07.8]} 20. Bf5 {[%clk 0:01:17.5]} 20... Kc8 {[%clk 0:00:58.8]} 21.
Qe6 {[%clk 0:00:55]} 21... Rd8 {[%clk 0:00:20.4]} 22. Rxd6 {[%clk 0:00:53]}
22... Bb5 {[%clk 0:00:20.3]} 23. Bd3 {[%clk 0:00:41.9]} 23... Ba4 {[%clk
0:00:06.2]} 24. b3 {[%clk 0:00:41.8]} 24... Qc5 {[%clk 0:00:03.4]} 25. bxa4
{[%clk 0:00:32.3]} 25... Qg1+ {[%clk 0:00:01.7]} 26. Kb2 {[%clk 0:00:30.2]}
26... Ra7 {[%clk 0:00:02.2]} 27. Bxa6+ {[%clk 0:00:19.4]} 27... Kb8 {[%clk
0:00:00.5]} 28. Rdxd7 {[%clk 0:00:17]} 1-0

[Event "Late-Titled-Tuesday-Blitz-May-14-2024"]
[Site "Chess.com"]
[Date "2024.05.14"]
[Round "4"]
[White "MeisterJabo"]
[Black "Rital44"]
[Result "0-1"]
[WhiteElo "2484"]
[BlackElo "2708"]
[TimeControl "180+1"]
[EndTime "14:39:07 PDT"]
[Termination "Rital44 won on time"]

1. c4 {[%clk 0:02:44.4]} 1... g6 {[%clk 0:02:55.3]} 2. g3 {[%clk 0:02:44]} 2...
Bg7 {[%clk 0:02:55.3]} 3. Bg2 {[%clk 0:02:44.7]} 3... f5 {[%clk 0:02:54.7]} 4.
Nc3 {[%clk 0:02:44.9]} 4... Nf6 {[%clk 0:02:54.7]} 5. b4 {[%clk 0:02:45]} 5...
Ne4 {[%clk 0:02:53.4]} 6. Bb2 {[%clk 0:02:44.6]} 6... Nxc3 {[%clk 0:02:52.9]} 7.
Bxc3 {[%clk 0:02:45.5]} 7... e5 {[%clk 0:02:53]} 8. Nf3 {[%clk 0:02:44.2]} 8...
d6 {[%clk 0:02:52.3]} 9. O-O {[%clk 0:02:44.2]} 9... O-O {[%clk 0:02:50]} 10. a4
{[%clk 0:02:41.4]} 10... a5 {[%clk 0:02:48.3]} 11. b5 {[%clk 0:02:12.9]} 11...
Be6 {[%clk 0:02:46.4]} 12. d3 {[%clk 0:02:00.3]} 12... Nd7 {[%clk 0:02:46.3]}
13. e3 {[%clk 0:01:53.7]} 13... Nc5 {[%clk 0:02:41.8]} 14. h4 {[%clk 0:01:26.3]}
14... Kh8 {[%clk 0:02:36.6]} 15. Ng5 {[%clk 0:01:22]} 15... Bg8 {[%clk
0:02:34.4]} 16. d4 {[%clk 0:01:22.5]} 16... e4 {[%clk 0:02:22.2]} 17. dxc5
{[%clk 0:01:13]} 17... Bxc3 {[%clk 0:02:21.9]} 18. Rc1 {[%clk 0:01:13.6]} 18...
Be5 {[%clk 0:02:18.7]} 19. cxd6 {[%clk 0:00:58.6]} 19... cxd6 {[%clk 0:02:14.8]}
20. f4 {[%clk 0:00:53.1]} 20... Bf6 {[%clk 0:02:03.5]} 21. c5 {[%clk 0:00:51.8]}
21... d5 {[%clk 0:01:57.4]} 22. c6 {[%clk 0:00:48.9]} 22... bxc6 {[%clk
0:01:57.6]} 23. Rxc6 {[%clk 0:00:49]} 23... Rc8 {[%clk 0:01:55.4]} 24. Qc2
{[%clk 0:00:36.9]} 24... d4 {[%clk 0:01:52.8]} 25. Rc1 {[%clk 0:00:16.7]} 25...
Rxc6 {[%clk 0:01:50.5]} 26. Qxc6 {[%clk 0:00:17.6]} 26... dxe3 {[%clk
0:01:49.1]} 27. Ne6 {[%clk 0:00:15.4]} 27... Bxe6 {[%clk 0:01:47]} 28. Qxe6
{[%clk 0:00:16]} 28... Qd2 {[%clk 0:01:46.3]} 29. Rc8 {[%clk 0:00:16.1]} 29...
Bg7 {[%clk 0:01:22.6]} 30. Rxf8+ {[%clk 0:00:11.4]} 30... Bxf8 {[%clk
0:01:23.5]} 31. Qf6+ {[%clk 0:00:09.5]} 31... Bg7 {[%clk 0:01:23.9]} 32. Qf7
{[%clk 0:00:07.7]} 32... h6 {[%clk 0:01:02.9]} 33. Qxg6 {[%clk 0:00:07.8]} 33...
e2 {[%clk 0:01:02.7]} 34. Qe8+ {[%clk 0:00:08.1]} 34... Kh7 {[%clk 0:01:02.8]}
35. Kh2 {[%clk 0:00:03.5]} 35... e1=Q {[%clk 0:01:01.6]} 36. Qe6 {[%clk
0:00:02.9]} 36... Qd8 {[%clk 0:00:51.1]} 37. Qxf5+ {[%clk 0:00:03.3]} 37... Kh8
{[%clk 0:00:51.6]} 38. Bxe4 {[%clk 0:00:03]} 38... Qe2+ {[%clk 0:00:42.7]} 39.
Kh3 {[%clk 0:00:03.4]} 39... Qf1+ {[%clk 0:00:42.9]} 40. Kg4 {[%clk 0:00:03.8]}
40... Qdd1+ {[%clk 0:00:42.1]} 0-1

[Event "Late-Titled-Tuesday-Blitz-May-14-2024"]
[Site "Chess.com"]
[Date "2024.05.14"]
[Round "4"]
[White "lcmil"]
[Black "KirAk47"]
[Result "1-0"]
[WhiteElo "2687"]
[BlackElo "2447"]
[TimeControl "180+1"]
[EndTime "14:39:08 PDT"]
[Termination "lcmil won by checkmate"]

1. e4 {[%clk 0:03:00.9]} 1... c6 {[%clk 0:02:58]} 2. d4 {[%clk 0:03:00.8]} 2...
d5 {[%clk 0:02:51.7]} 3. e5 {[%clk 0:03:01]} 3... Bf5 {[%clk 0:02:22.8]} 4. Nc3
{[%clk 0:02:59.3]} 4... e6 {[%clk 0:02:18.1]} 5. g4 {[%clk 0:02:59]} 5... Bg6
{[%clk 0:02:17.9]} 6. Nge2 {[%clk 0:02:59.4]} 6... Nd7 {[%clk 0:02:06.4]} 7. h4
{[%clk 0:02:55.8]} 7... h6 {[%clk 0:02:05.4]} 8. Nf4 {[%clk 0:02:43.4]} 8... Bh7
{[%clk 0:01:57.1]} 9. Bd3 {[%clk 0:02:01.9]} 9... Bxd3 {[%clk 0:01:52.5]} 10.
Qxd3 {[%clk 0:01:56.7]} 10... Ne7 {[%clk 0:01:50.3]} 11. Be3 {[%clk 0:01:42.6]}
11... Qa5 {[%clk 0:01:42.3]} 12. O-O-O {[%clk 0:01:33.5]} 12... c5 {[%clk
0:01:35.5]} 13. g5 {[%clk 0:01:19]} 13... g6 {[%clk 0:01:13.4]} 14. gxh6 {[%clk
0:01:10]} 14... cxd4 {[%clk 0:01:11]} 15. Qxd4 {[%clk 0:00:59.7]} 15... Nc6
{[%clk 0:01:07]} 16. Qd2 {[%clk 0:00:57.7]} 16... Ndxe5 {[%clk 0:01:02.9]} 17.
h5 {[%clk 0:00:48.4]} 17... Nc4 {[%clk 0:00:57.8]} 18. Qe1 {[%clk 0:00:37.6]}
18... Qb4 {[%clk 0:00:55]} 19. Nd3 {[%clk 0:00:35.2]} 19... Qd6 {[%clk
0:00:41.7]} 20. hxg6 {[%clk 0:00:31.4]} 20... fxg6 {[%clk 0:00:42.6]} 21. Qg1
{[%clk 0:00:30]} 21... O-O-O {[%clk 0:00:42.3]} 22. Qxg6 {[%clk 0:00:29.3]}
22... Ne7 {[%clk 0:00:38.7]} 23. Qf6 {[%clk 0:00:28.6]} 23... Nxe3 {[%clk
0:00:34.8]} 24. fxe3 {[%clk 0:00:26.4]} 24... Rh7 {[%clk 0:00:34.8]} 25. e4
{[%clk 0:00:25.9]} 25... d4 {[%clk 0:00:27.5]} 26. Ne2 {[%clk 0:00:14]} 26... e5
{[%clk 0:00:23.9]} 27. Qxd6 {[%clk 0:00:12.9]} 27... Rxd6 {[%clk 0:00:24.1]} 28.
Nxe5 {[%clk 0:00:13.6]} 28... Rhxh6 {[%clk 0:00:23.2]} 29. Rxh6 {[%clk
0:00:09.3]} 29... Bxh6+ {[%clk 0:00:23.8]} 30. Kb1 {[%clk 0:00:10]} 30... Be3
{[%clk 0:00:22.9]} 31. Nc4 {[%clk 0:00:09.6]} 31... Re6 {[%clk 0:00:23.3]} 32.
Nxd4 {[%clk 0:00:09.2]} 32... Rxe4 {[%clk 0:00:23.8]} 33. Nd6+ {[%clk
0:00:09.1]} 33... Kc7 {[%clk 0:00:21]} 34. Nxe4 {[%clk 0:00:10]} 34... Nd5
{[%clk 0:00:21.2]} 35. Nb5+ {[%clk 0:00:10.2]} 35... Kc6 {[%clk 0:00:21.7]} 36.
c4 {[%clk 0:00:09.3]} 36... Nb6 {[%clk 0:00:19.9]} 37. Rd6# {[%clk 0:00:08.9]}
1-0

[Event "Late-Titled-Tuesday-Blitz-May-14-2024"]
[Site "Chess.com"]
[Date "2024.05.14"]
[Round "4"]
[White "Stanbad1"]
[Black "DominguezOnYoutube"]
[Result "0-1"]
[WhiteElo "2615"]
[BlackElo "3014"]
[TimeControl "180+1"]
[EndTime "14:39:09 PDT"]
[Termination "DominguezOnYoutube won by resignation"]

1. d4 {[%clk 0:03:00.9]} 1... Nf6 {[%clk 0:02:59.3]} 2. Nc3 {[%clk 0:02:59]}
2... d5 {[%clk 0:02:58.4]} 3. Bf4 {[%clk 0:02:55.9]} 3... c5 {[%clk 0:02:57.7]}
4. e4 {[%clk 0:02:55.8]} 4... Nxe4 {[%clk 0:02:57]} 5. Nxe4 {[%clk 0:02:56.1]}
5... dxe4 {[%clk 0:02:57.9]} 6. dxc5 {[%clk 0:02:56.8]} 6... Qa5+ {[%clk
0:02:58.1]} 7. c3 {[%clk 0:02:57.5]} 7... Qxc5 {[%clk 0:02:58.7]} 8. Qa4+ {[%clk
0:02:58.2]} 8... Nc6 {[%clk 0:02:59]} 9. Qxe4 {[%clk 0:02:58.9]} 9... g6 {[%clk
0:02:59.5]} 10. Nf3 {[%clk 0:02:58.7]} 10... Bg7 {[%clk 0:02:58.7]} 11. Rd1
{[%clk 0:02:59.3]} 11... Bf5 {[%clk 0:02:57.7]} 12. Qa4 {[%clk 0:02:58.7]} 12...
O-O {[%clk 0:02:51.4]} 13. Be3 {[%clk 0:02:58.6]} 13... Qa5 {[%clk 0:02:51.1]}
14. Qxa5 {[%clk 0:02:58.4]} 14... Nxa5 {[%clk 0:02:52]} 15. Be2 {[%clk
0:02:58.5]} 15... Be6 {[%clk 0:02:45.5]} 16. a3 {[%clk 0:02:56.6]} 16... b6
{[%clk 0:02:33.5]} 17. Bd4 {[%clk 0:02:50.5]} 17... Rfd8 {[%clk 0:02:30.4]} 18.
Bxg7 {[%clk 0:02:48.8]} 18... Kxg7 {[%clk 0:02:30.9]} 19. Nd4 {[%clk 0:02:48.4]}
19... Bd5 {[%clk 0:02:29.5]} 20. O-O {[%clk 0:02:48.2]} 20... Bc4 {[%clk
0:01:56.4]} 21. Rfe1 {[%clk 0:02:44.9]} 21... e5 {[%clk 0:01:41.5]} 22. Bxc4
{[%clk 0:02:18.7]} 22... Nxc4 {[%clk 0:01:40.7]} 23. Nc6 {[%clk 0:02:13.7]}
23... Rxd1 {[%clk 0:01:36.8]} 24. Rxd1 {[%clk 0:02:14.6]} 24... Nxb2 {[%clk
0:01:07.4]} 25. Rd7 {[%clk 0:02:07.7]} 25... Nc4 {[%clk 0:00:52.7]} 26. Nxa7
{[%clk 0:01:56.1]} 26... Nxa3 {[%clk 0:00:42.7]} 27. Nc6 {[%clk 0:01:55.1]}
27... Nc4 {[%clk 0:00:36.6]} 28. g3 {[%clk 0:01:54.4]} 28... Kf8 {[%clk
0:00:29.5]} 29. Rc7 {[%clk 0:01:48.7]} 29... Re8 {[%clk 0:00:16.7]} 30. Nb4
{[%clk 0:01:41.2]} 30... Nd2 {[%clk 0:00:14.7]} 31. Nd5 {[%clk 0:01:39.9]} 31...
Re6 {[%clk 0:00:13.7]} 32. Rb7 {[%clk 0:01:38.6]} 32... Rd6 {[%clk 0:00:13.4]}
33. Nxb6 {[%clk 0:01:36.3]} 33... Ne4 {[%clk 0:00:08.5]} 34. Nc4 {[%clk
0:01:34]} 34... Re6 {[%clk 0:00:07.4]} 35. Rb3 {[%clk 0:01:24.2]} 35... f6
{[%clk 0:00:07.6]} 36. f3 {[%clk 0:01:23.5]} 36... Nc5 {[%clk 0:00:07.7]} 37.
Rb8+ {[%clk 0:01:22.8]} 37... Kg7 {[%clk 0:00:07.5]} 38. Rc8 {[%clk 0:01:23]}
38... Nd3 {[%clk 0:00:06.8]} 39. Rc7+ {[%clk 0:01:22.9]} 39... Kh6 {[%clk
0:00:06.8]} 40. Ne3 {[%clk 0:01:22.9]} 40... f5 {[%clk 0:00:06.2]} 41. g4 {[%clk
0:01:20.7]} 41... Kg5 {[%clk 0:00:05]} 42. gxf5 {[%clk 0:01:19.1]} 42... gxf5
{[%clk 0:00:05.9]} 43. Rxh7 {[%clk 0:01:19.2]} 43... Kf4 {[%clk 0:00:06.2]} 44.
Ng2+ {[%clk 0:01:00.7]} 44... Kxf3 {[%clk 0:00:06]} 45. Rh3+ {[%clk 0:01:00.9]}
45... Ke2 {[%clk 0:00:06.4]} 46. c4 {[%clk 0:00:57.5]} 46... f4 {[%clk
0:00:06.4]} 47. c5 {[%clk 0:00:51.3]} 47... f3 {[%clk 0:00:06.4]} 48. c6 {[%clk
0:00:48.1]} 48... f2+ {[%clk 0:00:06.2]} 0-1

[Event "Late-Titled-Tuesday-Blitz-May-14-2024"]
[Site "Chess.com"]
[Date "2024.05.14"]
[Round "4"]
[White "cthulhuuu"]
[Black "SRob2003"]
[Result "0-1"]
[WhiteElo "2475"]
[BlackElo "2685"]
[TimeControl "180+1"]
[EndTime "14:39:10 PDT"]
[Termination "SRob2003 won on time"]

1. e4 {[%clk 0:03:00]} 1... c5 {[%clk 0:03:00.5]} 2. Nf3 {[%clk 0:03:00]} 2...
Nc6 {[%clk 0:03:01.2]} 3. g3 {[%clk 0:03:00.2]} 3... Nf6 {[%clk 0:02:59]} 4. d3
{[%clk 0:03:00.5]} 4... d5 {[%clk 0:02:59.5]} 5. exd5 {[%clk 0:02:57.3]} 5...
Nxd5 {[%clk 0:02:58.9]} 6. Bg2 {[%clk 0:02:58.2]} 6... g6 {[%clk 0:02:59.1]} 7.
Nc3 {[%clk 0:02:55.9]} 7... Bg7 {[%clk 0:02:56.6]} 8. Nxd5 {[%clk 0:02:56.1]}
8... Qxd5 {[%clk 0:02:57.5]} 9. O-O {[%clk 0:02:56.4]} 9... O-O {[%clk
0:02:57.8]} 10. Re1 {[%clk 0:02:55.5]} 10... Qd7 {[%clk 0:02:54.9]} 11. c3
{[%clk 0:02:18.1]} 11... b6 {[%clk 0:02:50.4]} 12. d4 {[%clk 0:02:13.3]} 12...
Rd8 {[%clk 0:02:22.2]} 13. Qa4 {[%clk 0:02:02.5]} 13... cxd4 {[%clk 0:01:26.3]}
14. Nxd4 {[%clk 0:01:59.9]} 14... Nxd4 {[%clk 0:01:26.8]} 15. Qxd7 {[%clk
0:01:57.3]} 15... Bxd7 {[%clk 0:01:27.7]} 16. cxd4 {[%clk 0:01:30.7]} 16... Rac8
{[%clk 0:01:26.5]} 17. Rxe7 {[%clk 0:01:26.9]} 17... Bxd4 {[%clk 0:01:11]} 18.
Bg5 {[%clk 0:01:23.2]} 18... Bc5 {[%clk 0:00:44.6]} 19. Rd1 {[%clk 0:00:58.1]}
19... Bg4 {[%clk 0:00:28.7]} 20. Rxd8+ {[%clk 0:00:37.8]} 20... Rxd8 {[%clk
0:00:29.6]} 21. Re1 {[%clk 0:00:31.8]} 21... f6 {[%clk 0:00:27.5]} 22. Bh6
{[%clk 0:00:15.1]} 22... Kf7 {[%clk 0:00:22.6]} 23. h3 {[%clk 0:00:11.3]} 23...
Be6 {[%clk 0:00:19.7]} 24. a3 {[%clk 0:00:05.9]} 24... g5 {[%clk 0:00:20.4]} 25.
h4 {[%clk 0:00:03.8]} 25... Rg8 {[%clk 0:00:16.8]} 26. hxg5 {[%clk 0:00:03.7]}
26... fxg5 {[%clk 0:00:17.7]} 27. Kh2 {[%clk 0:00:03.6]} 27... Rg6 {[%clk
0:00:18.1]} 28. f4 {[%clk 0:00:03]} 28... Rxh6+ {[%clk 0:00:18]} 0-1

[Event "Late-Titled-Tuesday-Blitz-May-14-2024"]
[Site "Chess.com"]
[Date "2024.05.14"]
[Round "4"]
[White "rasmussvane"]
[Black "bazar-wokzal"]
[Result "1-0"]
[WhiteElo "2976"]
[BlackElo "2611"]
[TimeControl "180+1"]
[EndTime "14:39:12 PDT"]
[Termination "rasmussvane won by resignation"]

1. Nf3 {[%clk 0:02:48.2]} 1... c5 {[%clk 0:02:59.3]} 2. c4 {[%clk 0:02:47.8]}
2... g6 {[%clk 0:02:59.1]} 3. d4 {[%clk 0:02:46.7]} 3... Bg7 {[%clk 0:02:58.7]}
4. d5 {[%clk 0:02:46.7]} 4... f5 {[%clk 0:02:57]} 5. Qc2 {[%clk 0:02:39.2]} 5...
e5 {[%clk 0:02:54.5]} 6. dxe6 {[%clk 0:02:35.5]} 6... dxe6 {[%clk 0:02:54.8]} 7.
Nc3 {[%clk 0:02:36.2]} 7... Nc6 {[%clk 0:02:54.4]} 8. g3 {[%clk 0:02:34.7]} 8...
Nd4 {[%clk 0:02:49.9]} 9. Nxd4 {[%clk 0:01:50.8]} 9... cxd4 {[%clk 0:02:50]} 10.
Nb5 {[%clk 0:01:51.4]} 10... a6 {[%clk 0:02:46.7]} 11. Na3 {[%clk 0:01:51.5]}
11... Nf6 {[%clk 0:02:40.2]} 12. Bg2 {[%clk 0:01:50.6]} 12... O-O {[%clk
0:02:40.2]} 13. O-O {[%clk 0:01:45.7]} 13... e5 {[%clk 0:02:40.2]} 14. Rd1
{[%clk 0:01:37.9]} 14... Qc7 {[%clk 0:02:40.1]} 15. e3 {[%clk 0:01:33.3]} 15...
dxe3 {[%clk 0:02:37.9]} 16. Bxe3 {[%clk 0:01:33.4]} 16... f4 {[%clk 0:02:34.8]}
17. Bd2 {[%clk 0:01:16.8]} 17... Bg4 {[%clk 0:02:30.7]} 18. Re1 {[%clk
0:01:14.7]} 18... Rac8 {[%clk 0:02:17.3]} 19. Bc3 {[%clk 0:01:12.9]} 19... Nh5
{[%clk 0:02:10.5]} 20. Qe4 {[%clk 0:01:08.4]} 20... Kh8 {[%clk 0:02:00.1]} 21.
Qxb7 {[%clk 0:01:04.6]} 21... f3 {[%clk 0:01:50]} 22. Qxc7 {[%clk 0:01:02.3]}
22... Rxc7 {[%clk 0:01:50.9]} 23. Bf1 {[%clk 0:01:02.2]} 23... Re8 {[%clk
0:01:42.7]} 24. Rad1 {[%clk 0:00:52.3]} 24... e4 {[%clk 0:01:41.7]} 25. Bxg7+
{[%clk 0:00:49.3]} 25... Nxg7 {[%clk 0:01:40.2]} 26. Nc2 {[%clk 0:00:49]} 26...
a5 {[%clk 0:01:27.7]} 27. b3 {[%clk 0:00:44.5]} 27... h5 {[%clk 0:01:20.2]} 28.
h3 {[%clk 0:00:43.9]} 28... Bf5 {[%clk 0:01:19.9]} 29. Ne3 {[%clk 0:00:43]}
29... Rb8 {[%clk 0:01:10]} 30. g4 {[%clk 0:00:40.6]} 30... Be6 {[%clk
0:01:00.2]} 31. Rd4 {[%clk 0:00:40.5]} 31... a4 {[%clk 0:00:57.4]} 32. bxa4
{[%clk 0:00:40.3]} 32... Rb2 {[%clk 0:00:55.2]} 33. Rxe4 {[%clk 0:00:39.6]}
33... Rxa2 {[%clk 0:00:55.1]} 34. Rf4 {[%clk 0:00:35.8]} 34... Rxa4 {[%clk
0:00:48.5]} 35. Rxf3 {[%clk 0:00:34.6]} 35... hxg4 {[%clk 0:00:46.8]} 36. hxg4
{[%clk 0:00:34.8]} 36... Rf7 {[%clk 0:00:37.6]} 37. Rxf7 {[%clk 0:00:33.5]}
37... Bxf7 {[%clk 0:00:38.5]} 38. Kg2 {[%clk 0:00:30.8]} 38... Ne6 {[%clk
0:00:38.2]} 39. Kg3 {[%clk 0:00:31.2]} 39... g5 {[%clk 0:00:37.8]} 40. Bg2
{[%clk 0:00:30.6]} 40... Ra2 {[%clk 0:00:31.5]} 41. Bd5 {[%clk 0:00:30]} 41...
Kg8 {[%clk 0:00:30.1]} 42. Nf5 {[%clk 0:00:28.8]} 42... Ra3+ {[%clk 0:00:25.3]}
43. f3 {[%clk 0:00:28.6]} 43... Ra6 {[%clk 0:00:23.6]} 44. Nh6+ {[%clk
0:00:28.1]} 44... Kg7 {[%clk 0:00:22.6]} 45. Nxf7 {[%clk 0:00:28.6]} 1-0

[Event "Late-Titled-Tuesday-Blitz-May-14-2024"]
[Site "Chess.com"]
[Date "2024.05.14"]
[Round "4"]
[White "AradNazari"]
[Black "maximnovik"]
[Result "0-1"]
[WhiteElo "2787"]
[BlackElo "2579"]
[TimeControl "180+1"]
[EndTime "14:39:12 PDT"]
[Termination "maximnovik won by resignation"]

1. e4 {[%clk 0:02:50.2]} 1... e5 {[%clk 0:02:59.6]} 2. f4 {[%clk 0:02:48.7]}
2... Bc5 {[%clk 0:02:58.5]} 3. Nf3 {[%clk 0:02:43.8]} 3... d6 {[%clk 0:02:58.2]}
4. c3 {[%clk 0:02:34.1]} 4... Nc6 {[%clk 0:02:53.2]} 5. d4 {[%clk 0:02:27.7]}
5... Bb6 {[%clk 0:02:51.4]} 6. d5 {[%clk 0:02:17.2]} 6... Nce7 {[%clk 0:02:48]}
7. fxe5 {[%clk 0:02:17.7]} 7... dxe5 {[%clk 0:02:48.1]} 8. Nxe5 {[%clk
0:02:13.8]} 8... Nf6 {[%clk 0:02:44.7]} 9. Bd3 {[%clk 0:02:08]} 9... O-O {[%clk
0:02:42.8]} 10. Bg5 {[%clk 0:02:06.1]} 10... Nexd5 {[%clk 0:02:11.1]} 11. exd5
{[%clk 0:01:38.5]} 11... Re8 {[%clk 0:02:10.9]} 12. Bf4 {[%clk 0:01:39.1]} 12...
Qxd5 {[%clk 0:01:26.2]} 13. Na3 {[%clk 0:01:12.1]} 13... Qxg2 {[%clk 0:01:15.3]}
14. Rf1 {[%clk 0:01:00.7]} 14... Ng4 {[%clk 0:00:55.9]} 15. Nc4 {[%clk
0:00:52.6]} 15... Bf2+ {[%clk 0:00:48.9]} 16. Kd2 {[%clk 0:00:49.8]} 16... Be3+
{[%clk 0:00:46.4]} 17. Ke1 {[%clk 0:00:48.4]} 17... Bxf4 {[%clk 0:00:41.2]} 18.
Rxf4 {[%clk 0:00:42]} 18... Nxe5 {[%clk 0:00:39.2]} 19. Bxh7+ {[%clk 0:00:39.1]}
19... Kxh7 {[%clk 0:00:32]} 20. Qh5+ {[%clk 0:00:38.6]} 20... Kg8 {[%clk
0:00:28.9]} 21. Nxe5 {[%clk 0:00:39]} 21... g6 {[%clk 0:00:20.2]} 22. Qe2 {[%clk
0:00:15.8]} 22... Qxe2+ {[%clk 0:00:20]} 23. Kxe2 {[%clk 0:00:16.7]} 23... Rxe5+
{[%clk 0:00:20.3]} 24. Kd2 {[%clk 0:00:17.4]} 24... Bf5 {[%clk 0:00:20.8]} 25.
Rg1 {[%clk 0:00:17.7]} 25... Rd8+ {[%clk 0:00:20.8]} 26. Kc1 {[%clk 0:00:18.3]}
26... Rde8 {[%clk 0:00:21]} 27. b4 {[%clk 0:00:16.7]} 27... Kf8 {[%clk 0:00:21]}
28. h4 {[%clk 0:00:16.3]} 28... Re2 {[%clk 0:00:21]} 29. h5 {[%clk 0:00:16.2]}
29... Rc2+ {[%clk 0:00:21.1]} 30. Kd1 {[%clk 0:00:16.7]} 30... Rxa2 {[%clk
0:00:21.2]} 31. Rg3 {[%clk 0:00:15.7]} 31... Ree2 {[%clk 0:00:19.9]} 32. hxg6
{[%clk 0:00:15.9]} 32... Bxg6 {[%clk 0:00:18.3]} 33. Rxg6 {[%clk 0:00:15.9]}
33... Rh2 {[%clk 0:00:18.3]} 0-1

[Event "Late-Titled-Tuesday-Blitz-May-14-2024"]
[Site "Chess.com"]
[Date "2024.05.14"]
[Round "4"]
[White "Kiborg95"]
[Black "N_Mullodzhanov"]
[Result "1-0"]
[WhiteElo "2900"]
[BlackElo "2596"]
[TimeControl "180+1"]
[EndTime "14:39:14 PDT"]
[Termination "Kiborg95 won by checkmate"]

1. e4 {[%clk 0:02:56.1]} 1... c6 {[%clk 0:02:59.6]} 2. d4 {[%clk 0:02:55.7]}
2... d5 {[%clk 0:03:00]} 3. e5 {[%clk 0:02:56.5]} 3... Bf5 {[%clk 0:03:00.2]} 4.
h4 {[%clk 0:02:57.2]} 4... h6 {[%clk 0:03:00.3]} 5. g4 {[%clk 0:02:46.9]} 5...
Be4 {[%clk 0:03:00.4]} 6. f3 {[%clk 0:02:47.4]} 6... Bh7 {[%clk 0:03:00.5]} 7.
e6 {[%clk 0:02:48.1]} 7... Qd6 {[%clk 0:03:01]} 8. exf7+ {[%clk 0:02:48.7]} 8...
Kxf7 {[%clk 0:03:01.9]} 9. f4 {[%clk 0:02:49.5]} 9... Nf6 {[%clk 0:02:59.2]} 10.
Nf3 {[%clk 0:02:50.2]} 10... Nxg4 {[%clk 0:02:39.1]} 11. h5 {[%clk 0:02:50.6]}
11... Ke8 {[%clk 0:02:37.8]} 12. Nc3 {[%clk 0:02:42.1]} 12... Nd7 {[%clk
0:02:34.9]} 13. Ne5 {[%clk 0:02:40]} 13... Ngxe5 {[%clk 0:02:26.4]} 14. fxe5
{[%clk 0:02:40.9]} 14... Qb4 {[%clk 0:02:17.1]} 15. a3 {[%clk 0:02:38.4]} 15...
Qb6 {[%clk 0:02:15.7]} 16. Bd3 {[%clk 0:02:39.1]} 16... Bg8 {[%clk 0:01:43.2]}
17. Qg4 {[%clk 0:02:18.2]} 17... e6 {[%clk 0:01:31.4]} 18. Be3 {[%clk 0:01:44]}
18... Nxe5 {[%clk 0:01:21.2]} 19. Qe2 {[%clk 0:01:31.4]} 19... Nxd3+ {[%clk
0:01:16.7]} 20. cxd3 {[%clk 0:01:31.1]} 20... Kd7 {[%clk 0:01:01.6]} 21. Rg1
{[%clk 0:01:31.2]} 21... Re8 {[%clk 0:00:55.2]} 22. O-O-O {[%clk 0:01:31.4]}
22... Kc8 {[%clk 0:00:50.3]} 23. Rdf1 {[%clk 0:01:31.5]} 23... Qc7 {[%clk
0:00:47.8]} 24. Bf4 {[%clk 0:01:28.9]} 24... Qd7 {[%clk 0:00:47.3]} 25. Be5
{[%clk 0:01:28.5]} 25... Rh7 {[%clk 0:00:35.5]} 26. Qh2 {[%clk 0:01:16.7]} 26...
Be7 {[%clk 0:00:34.3]} 27. Kb1 {[%clk 0:01:13.4]} 27... Bg5 {[%clk 0:00:23.8]}
28. Rf2 {[%clk 0:01:11.1]} 28... Bf7 {[%clk 0:00:13.4]} 29. Bf4 {[%clk
0:01:02.1]} 29... Bf6 {[%clk 0:00:12]} 30. Ne2 {[%clk 0:00:54.8]} 30... Rhh8
{[%clk 0:00:07.5]} 31. Be5 {[%clk 0:00:55]} 31... Bxe5 {[%clk 0:00:02.8]} 32.
Qxe5 {[%clk 0:00:55.9]} 32... g5 {[%clk 0:00:02.1]} 33. hxg6 {[%clk 0:00:54.8]}
33... Rhg8 {[%clk 0:00:01.2]} 34. Rxf7 {[%clk 0:00:49.3]} 34... Qd8 {[%clk
0:00:01.4]} 35. Nf4 {[%clk 0:00:44.9]} 35... Qb6 {[%clk 0:00:01.5]} 36. Nxe6
{[%clk 0:00:36.4]} 36... Rxe6 {[%clk 0:00:02.4]} 37. Qxe6+ {[%clk 0:00:36.8]}
37... Kb8 {[%clk 0:00:03.3]} 38. Qd6+ {[%clk 0:00:35.1]} 38... Ka8 {[%clk
0:00:03.2]} 39. Rf8+ {[%clk 0:00:35]} 39... Qd8 {[%clk 0:00:01.3]} 40. Qxd8#
{[%clk 0:00:34.9]} 1-0